Workbook

Sheet Despesas
B3: Orçamento de Evento para [Nome do Evento]
H4: Despesas
H6: Valor estimado | I6: Real
C7: Despesas Totais | H7: =SUM(D14,D22,D28,D35,H14,H22,H27) -> R$ 1,145.00 | I7: =SUM(E14,E22,E28,E35,I14,I22,I27) -> R$ 395.00
C9: Site | D9: Valor estimado | E9: Real | G9: Coffee break | H9: Valor estimado | I9: Real
C10: Taxas da sala e espaço | D10: R$ 500.00 | E10: R$ 250.00 | G10: Alimentação
C11: Equipe de site | D11: R$ 400.00 | E11: R$ 50.00 | G11: Bebidas
C12: Equipamentos | G12: Roupa de mesa
C13: Mesas e cadeiras | G13: Funcionários e gorjetas
C14: Total | D14: =SUBTOTAL(109,Tabela1[Valor estimado]) -> R$ 900.00 | E14: =SUBTOTAL(109,Tabela1[Real]) -> R$ 300.00 | G14: Total | H14: =SUBTOTAL(109,Tabela5[Valor estimado]) -> R$ 0.00 | I14: =SUBTOTAL(109,Tabela5[Real]) -> R$ 0.00
C16: Decorações | D16: Valor estimado | E16: Real | G16: Programa | H16: Valor estimado | I16: Real
C17: Flores | D17: R$ 200.00 | E17: R$ 50.00 | G17: Executores
C18: Velas | G18: Alto-Falantes
C19: Iluminação | G19: Viagem
C20: Balões | G20: Hotel
C21: Fornecedores de papel | G21: Outros
C22: Total | D22: =SUBTOTAL(109,Tabela2[Valor estimado]) -> R$ 200.00 | E22: =SUBTOTAL(109,Tabela2[Real]) -> R$ 50.00 | G22: Total | H22: =SUBTOTAL(109,Tabela6[Valor estimado]) -> R$ 0.00 | I22: =SUBTOTAL(109,Tabela6[Real]) -> R$ 0.00
C24: Publicidade | D24: Valor estimado | E24: Real | G24: Prêmios | H24: Valor estimado | I24: Real
C25: Trabalho com elementos gráficos | D25: R$ 45.00 | E25: R$ 45.00 | G25: Faixa de opções/as placas/troféus
C26: Impressão/fotocópia | G26: Presentes
C27: Postagem | G27: Total | H27: =SUBTOTAL(109,Tabela7[Valor estimado]) -> R$ 0.00 | I27: =SUBTOTAL(109,Tabela7[Real]) -> R$ 0.00
C28: Total | D28: =SUBTOTAL(109,Tabela3[Valor estimado]) -> R$ 45.00 | E28: =SUBTOTAL(109,Tabela3[Real]) -> R$ 45.00
C30: Diversos | D30: Valor estimado | E30: Real
C31: Telefone
C32: Transporte
C33: Fornecedores de material de escritório
C34: Serviços de fax
C35: Total | D35: =SUBTOTAL(109,Tabela4[Valor estimado]) -> R$ 0.00 | E35: =SUBTOTAL(109,Tabela4[Real]) -> R$ 0.00

Sheet Receita
B3: Orçamento de Evento para [Nome do Evento]
F4: Receita
F6: Valor estimado | G6: Real
B7: Receita Total | F7: =SUM(F14,F21,F28,F36) -> R$ 1,936.00 | G7: =SUM(G14,G21,G28,G36) -> R$ 1,831.00
B9: Admissão
B10: Valor estimado | C10: Real | F10: Valor estimado | G10: Real
B11: 300 | C11: 278 | D11: Adultos @ | E11: R$ 5.00 | F11: =B11*E11 -> R$ 1,500.00 | G11: =C11*E11 -> R$ 1,390.00
B12: 197 | C12: 195 | D12: Crianças @ | E12: R$ 2.00 | F12: =B12*E12 -> R$ 394.00 | G12: =C12*E12 -> R$ 390.00
B13: 42 | C13: 51 | D13: Outros @ | E13: R$ 1.00 | F13: =B13*E13 -> R$ 42.00 | G13: =C13*E13 -> R$ 51.00
F14: =SUM(F11:F13) -> R$ 1,936.00 | G14: =SUM(G11:G13) -> R$ 1,831.00
B16: Anúncios no programa
B17: Valor estimado | C17: Real | F17: Valor estimado | G17: Real
D18: Folhas de rosto @ | F18: =B18*E18 -> R$ 0.00 | G18: =C18*E18 -> R$ 0.00
D19: Metade das páginas @ | F19: =B19*E19 -> R$ 0.00 | G19: =C19*E19 -> R$ 0.00
D20: Um quarto das páginas @ | F20: =B20*E20 -> R$ 0.00 | G20: =C20*E20 -> R$ 0.00
F21: =SUM(F18:F20) -> R$ 0.00 | G21: =SUM(G18:G20) -> R$ 0.00
B23: Apresentadores/fornecedores
B24: Valor estimado | C24: Real | F24: Valor estimado | G24: Real
D25: Grande estande @ | F25: =B25*E25 -> R$ 0.00 | G25: =C25*E25 -> R$ 0.00
D26: Estande MED. @ | F26: =B26*E26 -> R$ 0.00 | G26: =C26*E26 -> R$ 0.00
D27: Pequena estande @ | F27: =B27*E27 -> R$ 0.00 | G27: =C27*E27 -> R$ 0.00
F28: =SUM(F25:F27) -> R$ 0.00 | G28: =SUM(G25:G27) -> R$ 0.00
B30: Vendas de itens
B31: Valor estimado | C31: Real | F31: Valor estimado | G31: Real
D32: Itens @ | F32: =B32*E32 -> R$ 0.00 | G32: =C32*E32 -> R$ 0.00
D33: Itens @ | F33: =B33*E33 -> R$ 0.00 | G33: =C33*E33 -> R$ 0.00
D34: Itens @ | F34: =B34*E34 -> R$ 0.00 | G34: =C34*E34 -> R$ 0.00
D35: Itens @ | F35: =B35*E35 -> R$ 0.00 | G35: =C35*E35 -> R$ 0.00
F36: =SUM(F32:F35) -> R$ 0.00 | G36: =SUM(G32:G35) -> R$ 0.00

Sheet Resumo
B3: Orçamento de Evento para [Nome do Evento]
F4: Resumo de Lucros e Perdas
F6: Valor estimado | G6: Real
B7: Receita total | F7: =Receita!F7 -> R$ 1,936.00 | G7: =Receita!G7 -> R$ 1,831.00
B8: Despesas totais | F8: =Despesas!H7 -> R$ 1,145.00 | G8: =Despesas!I7 -> R$ 395.00
B9: Lucro total (ou perda) | F9: =F7-F8 -> R$ 791.00 | G9: =G7-G8 -> R$ 1,436.00
